fUSD/lending_fUSD_20260606
["ID","MTS","AMOUNT","RATE_DAILY","PERIOD"]
[424295237,1780755053000,-150.0,0.00030137,2]
[424295211,1780755053000,-533.06212738,0.00030137,120]
[424295212,1780755053000,-236.42154102,0.00030137,2]
[424295183,1780755053000,-650.0,0.0003,2]
[424295185,1780755053000,-502.7803597,0.00030012,7]
[424295188,1780755053000,-150.0,0.00030038,7]
[424295187,1780755053000,-150.0,0.00030025,7]
[424295186,1780755053000,-150.0,0.00030018,7]
[424295182,1780755053000,-200.0,0.0003,2]
[424295190,1780755053000,-150.0,0.00030052,7]
[424295191,1780755053000,-150.0,0.00030056,7]
[424295189,1780755053000,-502.7803597,0.00030045,7]
[424295193,1780755053000,-150.0,0.00030078,7]
[424295203,1780755053000,-150.0,0.00030129,7]
[424295192,1780755053000,-200.0,0.00030065,2]
[424295184,1780755053000,-200.0,0.0003,2]
[424295197,1780755053000,-1908.54,0.000301,7]
[424295207,1780755053000,-502.71,0.00030137,60]
[424295213,1780755053000,-188.93660991,0.00030137,2]
[424295205,1780755053000,-1005.02,0.00030137,2]
[424295206,1780755053000,-165.61137044,0.00030137,2]
[424295196,1780755053000,-150.0,0.00030087,7]
[424295202,1780755053000,-150.0,0.00030126,7]
[424295204,1780755053000,-150.0,0.00030132,7]
[424295201,1780755053000,-150.0,0.00030121,7]
[424295198,1780755053000,-1366.0,0.000301,7]
[424295194,1780755053000,-502.7803597,0.00030079,7]
[424295200,1780755053000,-502.7803597,0.00030112,7]
[424295195,1780755053000,-150.0,0.00030083,7]
[424295199,1780755053000,-713.0,0.0003011,2]
[424295282,1780755054000,-150.0,0.00030137,2]
[424295281,1780755054000,-150.0,0.00030137,2]
[424295277,1780755054000,-150.0,0.00030137,2]
[424295279,1780755054000,-150.0,0.00030137,2]
[424295266,1780755054000,-150.0,0.00030137,2]
[424295275,1780755054000,-150.0,0.00030137,2]
[424295274,1780755054000,-150.0,0.00030137,2]
[424295276,1780755054000,-150.0,0.00030137,2]
[424295272,1780755054000,-150.0,0.00030137,2]
[424295267,1780755054000,-150.0,0.00030137,2]
[424295273,1780755054000,-150.0,0.00030137,2]
[424295278,1780755054000,-150.0,0.00030137,2]
[424295288,1780755054000,-150.0,0.00030137,2]
[424295284,1780755054000,-150.0,0.00030137,2]
[424295294,1780755054000,-150.0,0.00030137,2]
[424295287,1780755054000,-150.0,0.00030137,2]
[424295285,1780755054000,-150.0,0.00030137,2]
[424295293,1780755054000,-150.0,0.00030137,2]
[424295286,1780755054000,-150.0,0.00030137,2]
[424295291,1780755054000,-150.0,0.00030137,2]
[424295289,1780755054000,-150.0,0.00030137,2]
[424295290,1780755054000,-150.0,0.00030137,2]
[424295283,1780755054000,-150.0,0.00030137,2]
[424295292,1780755054000,-150.0,0.00030137,2]
[424295269,1780755054000,-150.0,0.00030137,2]
[424295280,1780755054000,-150.0,0.00030137,2]
[424295263,1780755054000,-150.0,0.00030137,2]
[424295257,1780755054000,-150.0,0.00030137,2]
[424295264,1780755054000,-150.0,0.00030137,2]
[424295243,1780755054000,-150.0,0.00030137,2]
[424295241,1780755054000,-150.0,0.00030137,2]
[424295246,1780755054000,-150.0,0.00030137,2]
[424295242,1780755054000,-150.0,0.00030137,2]
[424295247,1780755054000,-150.0,0.00030137,2]
[424295244,1780755054000,-150.0,0.00030137,2]
[424295240,1780755054000,-150.0,0.00030137,2]
[424295245,1780755054000,-150.0,0.00030137,2]
[424295248,1780755054000,-150.0,0.00030137,2]
[424295251,1780755054000,-150.0,0.00030137,2]
[424295253,1780755054000,-150.0,0.00030137,2]
[424295249,1780755054000,-150.0,0.00030137,2]
[424295250,1780755054000,-150.0,0.00030137,2]
[424295252,1780755054000,-150.0,0.00030137,2]
[424295258,1780755054000,-150.0,0.00030137,2]
[424295259,1780755054000,-150.0,0.00030137,2]
[424295254,1780755054000,-150.0,0.00030137,2]
[424295255,1780755054000,-150.0,0.00030137,2]
[424295256,1780755054000,-150.0,0.00030137,2]
[424295261,1780755054000,-150.0,0.00030137,2]
[424295260,1780755054000,-150.0,0.00030137,2]
[424295271,1780755054000,-150.0,0.00030137,2]
[424295270,1780755054000,-150.0,0.00030137,2]
[424295262,1780755054000,-150.0,0.00030137,2]
[424295265,1780755054000,-150.0,0.00030137,2]
[424295268,1780755054000,-628.81,0.00030137,2]
[424295301,1780755054000,-150.0,0.00030137,2]
[424295295,1780755054000,-150.0,0.00030137,2]
[424295300,1780755054000,-150.0,0.00030137,2]
[424295330,1780755054000,-502.7803597,0.00030279,7]
[424295329,1780755054000,-150.0,0.00030265,7]
[424295333,1780755054000,-150.0,0.00030292,7]
[424295332,1780755054000,-150.0,0.00030284,7]
[424295331,1780755054000,-150.0,0.00030284,7]
[424295338,1780755054000,-150.0,0.0003031,7]
[424295339,1780755054000,-502.7803597,0.00030313,7]
[424295334,1780755054000,-150.0,0.00030294,7]
[424295337,1780755054000,-150.0,0.00030302,7]
[424295336,1780755054000,-4241.46,0.000303,7]
[424295335,1780755054000,-350.0,0.00030297,16]
[424295341,1780755054000,-200.0,0.0003032,2]
[424295324,1780755054000,-401.14,0.00030236,30]
[424295352,1780755054000,-502.7803597,0.00030346,7]
[424295342,1780755054000,-150.0,0.00030329,7]
[424295343,1780755054000,-936.0,0.00030339,30]
[424295347,1780755054000,-4110.0,0.00030339,30]
[424295346,1780755054000,-2972.0,0.00030339,30]
[424295349,1780755054000,-1116.0,0.00030342,30]
[424295348,1780755054000,-699.0,0.00030341,5]
[424295344,1780755054000,-1092.0,0.00030339,30]
[424295345,1780755054000,-675.0,0.00030339,30]
[424295350,1780755054000,-3041.2,0.00030343,7]
[424295353,1780755054000,-2510.0,0.0003035,30]
[424295354,1780755054000,-333.0,0.0003035,30]
[424295303,1780755054000,-628.81,0.00030137,2]
[424295340,1780755054000,-400.0,0.00030317,30]
[424295325,1780755054000,-150.0,0.00030238,7]
[424295351,1780755054000,-150.0,0.00030345,7]
[424295322,1780755054000,-401.15,0.00030236,30]
[424295298,1780755054000,-150.0,0.00030137,2]
[424295327,1780755054000,-502.7803597,0.00030246,7]
[424295297,1780755054000,-150.0,0.00030137,2]
[424295299,1780755054000,-150.0,0.00030137,2]
[424295296,1780755054000,-150.0,0.00030137,2]
[424295304,1780755054000,-502.7803597,0.00030146,7]
[424295302,1780755054000,-14184.8,0.00030137,7]
[424295305,1780755054000,-150.0,0.00030156,7]
[424295317,1780755054000,-2502.114463,0.000302,2]
[424295308,1780755054000,-502.7803597,0.00030179,7]
[424295310,1780755054000,-150.0,0.0003019,7]
[424295306,1780755054000,-150.0,0.00030174,7]
[424295309,1780755054000,-150.0,0.00030185,7]
[424295307,1780755054000,-150.0,0.00030179,7]
[424295320,1780755054000,-150.0,0.00030219,7]
[424295316,1780755054000,-707.6376,0.000302,6]
[424295314,1780755054000,-1399.73,0.000302,14]
[424295315,1780755054000,-707.6376,0.000302,5]
[424295312,1780755054000,-600.51,0.000302,2]
[424295311,1780755054000,-403.3,0.000302,2]
[424295326,1780755054000,-4204.8,0.00030239,2]
[424295321,1780755054000,-150.0,0.00030225,7]
[424295319,1780755054000,-502.7803597,0.00030212,7]
[424295318,1780755054000,-343.6311,0.000302,3]
[424295313,1780755054000,-600.52,0.000302,2]
[424295323,1780755054000,-401.14,0.00030236,30]
[424295328,1780755054000,-150.0,0.0003026,7]
[424295400,1780755055000,-587.22029275,0.00030458,2]
[424295393,1780755055000,-502.7803597,0.00030447,7]
[424295381,1780755055000,-390.30147377,0.00030435,2]
[424295396,1780755055000,-702.78029267,0.00030458,2]
[424295391,1780755055000,-150.0,0.00030442,7]
[424295390,1780755055000,-715.13537653,0.00030435,2]
[424295382,1780755055000,-647.3679293,0.00030435,2]
[424295395,1780755055000,-667.45808829,0.00030458,2]
[424295401,1780755055000,-615.41586543,0.00030458,2]
[424295385,1780755055000,-160.45104451,0.00030435,2]
[424295398,1780755055000,-268.41921305,0.00030458,2]
[424295402,1780755055000,-628.52056488,0.00030458,2]
[424295397,1780755055000,-624.78243561,0.00030458,2]
[424295413,1780755055000,-433.8507668,0.00030458,2]
[424295394,1780755055000,-150.0,0.00030452,7]
[424295403,1780755055000,-754.25160277,0.00030458,2]
[424295404,1780755055000,-758.6395048,0.00030458,2]
[424295414,1780755055000,-836.0170668,0.00030458,2]
[424295405,1780755055000,-734.62937219,0.00030458,2]
[424295406,1780755055000,-664.18562518,0.00030458,2]
[424295407,1780755055000,-655.84391139,0.00030458,2]
[424295412,1780755055000,-525.92510406,0.00030458,2]
[424295408,1780755055000,-426.82660578,0.00030458,2]
[424295411,1780755055000,-464.2251992,0.00030458,2]
[424295409,1780755055000,-327.26052862,0.00030458,2]
[424295410,1780755055000,-613.79599151,0.00030458,2]
[424295383,1780755055000,-736.38229665,0.00030435,2]
[424295399,1780755055000,-667.08266503,0.00030458,2]
[424295384,1780755055000,-160.0523769,0.00030435,2]
[424295362,1780755055000,-502.7803597,0.0003038,7]
[424295379,1780755055000,-794.93324346,0.00030435,2]
[424295415,1780755055000,-679.19863847,0.00030458,2]
[424295358,1780755055000,-786.0,0.0003035,30]
[424295359,1780755055000,-204.0,0.0003035,30]
[424295356,1780755055000,-1918.0,0.0003035,30]
[424295357,1780755055000,-360.0,0.0003035,30]
[424295355,1780755055000,-353.0,0.0003035,30]
[424295360,1780755055000,-150.0,0.00030355,7]
[424295361,1780755055000,-150.0,0.00030363,7]
[424295363,1780755055000,-150.0,0.00030398,7]
[424295364,1780755055000,-150.0,0.00030399,7]
[424295366,1780755055000,-200.0,0.00030411,2]
[424295368,1780755055000,-182.9,0.00030411,120]
[424295373,1780755055000,-150.0,0.00030424,7]
[424295380,1780755055000,-195.69284609,0.00030435,2]
[424295365,1780755055000,-150.0,0.00030401,7]
[424295369,1780755055000,-502.7803597,0.00030413,7]
[424295372,1780755055000,-622.92817331,0.00030414,2]
[424295371,1780755055000,-698.58897247,0.00030414,2]
[424295370,1780755055000,-466.46230177,0.00030414,2]
[424295374,1780755055000,-1000.0,0.00030428,2]
[424295376,1780755055000,-429.07929123,0.00030435,2]
[424295375,1780755055000,-150.0,0.00030432,7]
[424295378,1780755055000,-680.9382634,0.00030435,2]
[424295377,1780755055000,-809.97160728,0.00030435,2]
[424295387,1780755055000,-734.25749035,0.00030435,2]
[424295386,1780755055000,-414.69461133,0.00030435,2]
[424295388,1780755055000,-734.69672943,0.00030435,2]
[424295389,1780755055000,-160.55911995,0.00030435,2]
[424295367,1780755055000,-200.0,0.00030411,2]
[424295417,1780755055000,-525.01090578,0.00030458,2]
[424295392,1780755055000,-150.0,0.00030446,7]
[424295420,1780755055000,-731.17997882,0.00030458,2]
[424295452,1780755055000,-615.66620615,0.00030482,2]
[424295462,1780755055000,-805.57072819,0.00030482,2]
[424295463,1780755055000,-450.70730865,0.00030482,2]
[424295451,1780755055000,-537.83831172,0.00030482,2]
[424295464,1780755055000,-713.81930901,0.00030482,2]
[424295454,1780755055000,-164.60051743,0.00030482,2]
[424295453,1780755055000,-212.99678188,0.00030482,2]
[424295459,1780755055000,-165.14091316,0.00030482,2]
[424295456,1780755055000,-168.46234524,0.00030482,2]
[424295457,1780755055000,-330.18913245,0.00030482,2]
[424295455,1780755055000,-666.37471682,0.00030482,2]
[424295461,1780755055000,-945.89770757,0.00030482,2]
[424295460,1780755055000,-466.75281567,0.00030482,2]
[424295450,1780755055000,-685.5506822,0.00030482,2]
[424295458,1780755055000,-346.99088569,0.00030482,2]
[424295466,1780755055000,-384.91173698,0.00030482,2]
[424295468,1780755055000,-169.02355587,0.00030482,2]
[424295467,1780755055000,-160.93632549,0.00030482,2]
[424295469,1780755055000,-723.21284892,0.00030482,2]
[424295476,1780755055000,-493.75709593,0.00030482,2]
[424295471,1780755055000,-1388.80484847,0.00030482,2]
[424295475,1780755055000,-590.61351801,0.00030482,2]
[424295474,1780755055000,-498.02403117,0.00030482,2]
[424295477,1780755055000,-742.82060264,0.00030482,2]
[424295478,1780755055000,-161.71780045,0.00030482,2]
[424295470,1780755055000,-647.40474959,0.00030482,2]
[424295472,1780755055000,-178.30960949,0.00030482,2]
[424295419,1780755055000,-600.14091148,0.00030458,2]
[424295465,1780755055000,-411.96414744,0.00030482,2]
[424295448,1780755055000,-402.4992057,0.00030482,2]
[424295473,1780755055000,-527.3441939,0.00030482,2]
[424295445,1780755055000,-315.69646608,0.00030482,2]
[424295447,1780755055000,-401.15321097,0.00030482,2]
[424295418,1780755055000,-643.05525928,0.00030458,2]
[424295421,1780755055000,-674.28377998,0.00030458,2]
[424295424,1780755055000,-150.0,0.00030467,7]
[424295425,1780755055000,-502.7803597,0.0003048,7]
[424295416,1780755055000,-650.95209877,0.00030458,2]
[424295423,1780755055000,-631.43755386,0.00030458,2]
[424295427,1780755055000,-658.68345669,0.00030482,2]
[424295426,1780755055000,-602.41144112,0.00030482,2]
[424295436,1780755055000,-670.39375204,0.00030482,2]
[424295437,1780755055000,-1686.83713753,0.00030482,2]
[424295435,1780755055000,-697.57191248,0.00030482,2]
[424295428,1780755055000,-434.26579425,0.00030482,2]
[424295434,1780755055000,-613.3482849,0.00030482,2]
[424295422,1780755055000,-371.20449431,0.00030458,2]
[424295431,1780755055000,-405.78077509,0.00030482,2]
[424295433,1780755055000,-722.47458609,0.00030482,2]
[424295446,1780755055000,-1572.95139164,0.00030482,2]
[424295444,1780755055000,-170.97405169,0.00030482,2]
[424295443,1780755055000,-160.67006026,0.00030482,2]
[424295439,1780755055000,-451.01315914,0.00030482,2]
[424295441,1780755055000,-165.72187986,0.00030482,2]
[424295449,1780755055000,-169.04721995,0.00030482,2]
[424295438,1780755055000,-515.51993097,0.00030482,2]
[424295440,1780755055000,-687.81236134,0.00030482,2]
[424295429,1780755055000,-674.09127754,0.00030482,2]
[424295479,1780755055000,-755.74643964,0.00030482,2]
[424295432,1780755055000,-349.48705949,0.00030482,2]
[424295430,1780755055000,-229.80171355,0.00030482,2]
[424295442,1780755055000,-1549.22957377,0.00030482,2]
[424295524,1780755056000,-150.0,0.00030666,7]
[424295518,1780755056000,-502.7803597,0.00030614,7]
[424295522,1780755056000,-150.0,0.00030639,7]
[424295521,1780755056000,-150.0,0.00030639,7]
[424295514,1780755056000,-150.0,0.00030582,7]
[424295516,1780755056000,-150.0,0.00030605,7]
[424295512,1780755056000,-150.0,0.0003057,7]
[424295508,1780755056000,-150.0,0.00030537,7]
[424295517,1780755056000,-150.0,0.00030612,7]
[424295510,1780755056000,-502.7803597,0.00030547,7]
[424295515,1780755056000,-150.0,0.000306,7]
[424295511,1780755056000,-150.0,0.00030559,7]
[424295533,1780755056000,-150.0,0.00030743,7]
[424295519,1780755056000,-11363.343955,0.00030619,2]
[424295520,1780755056000,-150.0,0.00030628,7]
[424295530,1780755056000,-502.7803597,0.00030714,7]
[424295531,1780755056000,-150.0,0.00030718,7]
[424295525,1780755056000,-150.0,0.0003067,7]
[424295535,1780755056000,-150.0,0.00030757,7]
[424295527,1780755056000,-150.0,0.00030674,7]
[424295532,1780755056000,-150.0,0.00030719,7]
[424295526,1780755056000,-150.0,0.00030673,7]
[424295529,1780755056000,-150.0,0.00030708,7]
[424295528,1780755056000,-502.7803597,0.00030681,7]
[424295505,1780755056000,-150.0,0.00030505,7]
[424295534,1780755056000,-502.7803597,0.00030748,7]
[424295523,1780755056000,-502.7803597,0.00030647,7]
[424295513,1780755056000,-502.7803597,0.0003058,7]
[424295494,1780755056000,-676.51545523,0.00030482,2]
[424295506,1780755056000,-502.7803597,0.00030514,7]
[424295536,1780755056000,-150.0,0.00030757,7]
[424295480,1780755056000,-168.98283828,0.00030482,2]
[424295483,1780755056000,-168.1029797,0.00030482,2]
[424295481,1780755056000,-568.70035154,0.00030482,2]
[424295482,1780755056000,-170.32151872,0.00030482,2]
[424295487,1780755056000,-573.98852464,0.00030482,2]
[424295485,1780755056000,-602.53091327,0.00030482,2]
[424295489,1780755056000,-310.69195422,0.00030482,2]
[424295484,1780755056000,-481.88658962,0.00030482,2]
[424295486,1780755056000,-655.43761127,0.00030482,2]
[424295488,1780755056000,-416.15364245,0.00030482,2]
[424295490,1780755056000,-581.31230268,0.00030482,2]
[424295509,1780755056000,-150.0,0.00030547,7]
[424295492,1780755056000,-571.41027411,0.00030482,2]
[424295496,1780755056000,-712.88008676,0.00030482,2]
[424295500,1780755056000,-47389.37864451,0.0003049,7]
[424295499,1780755056000,-443.0997574,0.00030482,2]
[424295501,1780755056000,-205230.48141143,0.0003049,7]
[424295498,1780755056000,-615.57490845,0.00030482,2]
[424295495,1780755056000,-795.98343463,0.00030482,2]
[424295497,1780755056000,-632.3660045,0.00030482,2]
[424295502,1780755056000,-996.09,0.00030491,7]
[424295491,1780755056000,-572.99162094,0.00030482,2]
[424295503,1780755056000,-150.0,0.00030492,7]
[424295504,1780755056000,-150.0,0.00030501,7]
[424295507,1780755056000,-150.0,0.00030536,7]
[424295493,1780755056000,-534.00751399,0.00030482,2]
[424295541,1780755056000,-400.72288756,0.00030792,2]
[424295544,1780755056000,-150.0,0.00030809,7]
[424295581,1780755056000,-150.0,0.00031011,2]
[424295570,1780755056000,-502.7803597,0.00030949,7]
[424295573,1780755056000,-502.7803597,0.00030982,7]
[424295584,1780755056000,-917.82186294,0.00031015,2]
[424295583,1780755056000,-993.66655432,0.00031015,2]
[424295575,1780755056000,-150.0,0.00030986,7]
[424295574,1780755056000,-150.0,0.00030984,7]
[424295577,1780755056000,-873.23621559,0.00030994,2]
[424295580,1780755056000,-4241.46,0.00031,7]
[424295576,1780755056000,-150.0,0.00030991,7]
[424295582,1780755056000,-851.17282924,0.00031015,2]
[424295579,1780755056000,-1399.73,0.00031,14]
[424295578,1780755056000,-778.66021664,0.00030994,2]
[424295564,1780755056000,-150.0,0.00030915,7]
[424295585,1780755056000,-918.37091178,0.00031015,2]
[424295588,1780755056000,-150.0,0.00031036,7]
[424295586,1780755056000,-502.7803597,0.00031015,7]
[424295595,1780755056000,-830.23203148,0.00031039,2]
[424295594,1780755056000,-948.299381,0.00031039,2]
[424295589,1780755056000,-150.0,0.00031038,7]
[424295597,1780755056000,-1045.0213335,0.00031039,2]
[424295596,1780755056000,-767.24498939,0.00031039,2]
[424295590,1780755056000,-878.47536583,0.00031039,2]
[424295593,1780755056000,-942.81450346,0.00031039,2]
[424295591,1780755056000,-833.85333129,0.00031039,2]
[424295592,1780755056000,-769.26983178,0.00031039,2]
[424295538,1780755056000,-150.0,0.00030773,7]
[424295587,1780755056000,-150.0,0.00031019,7]
[424295562,1780755056000,-1908.54,0.000309,7]
[424295572,1780755056000,-1732.82,0.00030961,2]
[424295567,1780755056000,-150.0,0.00030933,7]
[424295540,1780755056000,-502.7803597,0.00030781,7]
[424295539,1780755056000,-150.0,0.00030777,7]
[424295542,1780755056000,-150.0,0.00030792,7]
[424295537,1780755056000,-150.0,0.00030764,7]
[424295545,1780755056000,-150.0,0.00030812,7]
[424295546,1780755056000,-502.7803597,0.00030815,7]
[424295543,1780755056000,-187.58631908,0.00030796,2]
[424295548,1780755056000,-198.21328667,0.00030835,2]
[424295563,1780755056000,-150.0,0.00030915,7]
[424295549,1780755056000,-200.0,0.00030839,2]
[424295557,1780755056000,-699.0,0.00030875,6]
[424295553,1780755056000,-150.0,0.00030875,2]
[424295550,1780755056000,-150.0,0.00030846,7]
[424295552,1780755056000,-150.0,0.00030855,7]
[424295547,1780755056000,-150.0,0.00030826,7]
[424295571,1780755056000,-150.0,0.0003095,7]
[424295556,1780755056000,-186.35577983,0.00030875,2]
[424295568,1780755056000,-250.0,0.00030942,7]
[424295559,1780755056000,-150.0,0.00030881,7]
[424295569,1780755056000,-150.0,0.00030945,7]
[424295565,1780755056000,-150.0,0.00030915,7]
[424295566,1780755056000,-502.7803597,0.00030915,7]
[424295560,1780755056000,-502.7803597,0.00030882,7]
[424295558,1780755056000,-150.0,0.00030879,7]
[424295554,1780755056000,-150.0,0.00030875,2]
[424295555,1780755056000,-150.0,0.00030875,2]
[424295551,1780755056000,-502.7803597,0.00030848,7]
[424295561,1780755056000,-150.0,0.000309,7]
[424295638,1780755057000,-150.0,0.0003116,7]
[424295637,1780755057000,-150.0,0.00031157,7]
[424295641,1780755057000,-150.0,0.00031191,7]
[424295644,1780755057000,-150.0,0.000312,7]
[424295639,1780755057000,-150.0,0.00031172,7]
[424295646,1780755057000,-151.0,0.000312,7]
[424295631,1780755057000,-502.7803597,0.00031116,7]
[424295635,1780755057000,-150.0,0.00031147,7]
[424295633,1780755057000,-150.0,0.00031127,7]
[424295630,1780755057000,-500.0,0.00031096,2]
[424295634,1780755057000,-260.49234589,0.00031129,2]
[424295642,1780755057000,-690.954214,0.000312,4]
[424295636,1780755057000,-502.7803597,0.00031149,7]
[424295640,1780755057000,-502.7803597,0.00031183,7]
[424295658,1780755057000,-150.0,0.00031218,7]
[424295645,1780755057000,-151.0,0.000312,7]
[424295647,1780755057000,-151.0,0.000312,7]
[424295651,1780755057000,-152.350853,0.000312,7]
[424295650,1780755057000,-152.350853,0.000312,7]
[424295652,1780755057000,-152.350853,0.000312,7]
[424295649,1780755057000,-152.350853,0.000312,7]
[424295653,1780755057000,-4236.104918,0.000312,7]
[424295656,1780755057000,-4236.104918,0.000312,7]
[424295654,1780755057000,-4236.104918,0.000312,7]
[424295657,1780755057000,-502.7803597,0.00031216,7]
[424295655,1780755057000,-4236.104918,0.000312,7]
[424295648,1780755057000,-151.0,0.000312,7]
[424295632,1780755057000,-150.0,0.00031122,7]
[424295643,1780755057000,-1000.0,0.000312,7]
[424295627,1780755057000,-502.7803597,0.00031082,7]
[424295598,1780755057000,-750.17613935,0.00031039,2]
[424295628,1780755057000,-150.0,0.00031088,7]
[424295599,1780755057000,-842.85472498,0.00031039,2]
[424295607,1780755057000,-903.09323261,0.00031062,2]
[424295608,1780755057000,-766.68535612,0.00031062,2]
[424295609,1780755057000,-871.9648906,0.00031062,2]
[424295610,1780755057000,-837.99219005,0.00031062,2]
[424295611,1780755057000,-2108.54642191,0.00031062,2]
[424295603,1780755057000,-150.0,0.00031053,7]
[424295601,1780755057000,-150.0,0.0003104,7]
[424295612,1780755057000,-859.76545167,0.00031062,2]
[424295604,1780755057000,-753.0143014,0.00031062,2]
[424295606,1780755057000,-842.61409692,0.00031062,2]
[424295602,1780755057000,-502.7803597,0.00031049,7]
[424295605,1780755057000,-823.35432087,0.00031062,2]
[424295613,1780755057000,-1936.53696721,0.00031062,2]
[424295617,1780755057000,-1182.37213446,0.00031062,2]
[424295626,1780755057000,-150.0,0.00031081,7]
[424295616,1780755057000,-832.96839602,0.00031062,2]
[424295615,1780755057000,-856.93835275,0.00031062,2]
[424295623,1780755057000,-819.29701409,0.00031062,2]
[424295619,1780755057000,-809.25593699,0.00031062,2]
[424295618,1780755057000,-1006.96341024,0.00031062,2]
[424295614,1780755057000,-1966.18923955,0.00031062,2]
[424295625,1780755057000,-150.0,0.00031073,7]
[424295621,1780755057000,-944.68304955,0.00031062,2]
[424295622,1780755057000,-753.16364158,0.00031062,2]
[424295624,1780755057000,-769.46863557,0.00031062,2]
[424295620,1780755057000,-1736.00606059,0.00031062,2]
[424295629,1780755057000,-150.0,0.00031093,7]
[424295660,1780755057000,-150.0,0.00031231,7]
[424295600,1780755057000,-789.29694232,0.00031039,2]
[424295663,1780755057000,-300.0,0.00031233,14]
[424295690,1780755057000,-150.0,0.00031307,7]
[424295691,1780755057000,-150.0,0.00031308,7]
[424295689,1780755057000,-150.0,0.00031295,7]
[424295692,1780755057000,-502.7803597,0.00031317,7]
[424295698,1780755057000,-1094.222631,0.00031317,7]
[424295700,1780755057000,-1094.222631,0.00031317,7]
[424295701,1780755057000,-617.346821,0.00031317,7]
[424295709,1780755057000,-1267.09,0.0003132,2]
[424295699,1780755057000,-617.346821,0.00031317,7]
[424295710,1780755057000,-291.61,0.0003132,2]
[424295706,1780755057000,-2532.201305,0.00031317,7]
[424295704,1780755057000,-2532.201305,0.00031317,7]
[424295703,1780755057000,-2532.201305,0.00031317,7]
[424295684,1780755057000,-500.0,0.00031288,2]
[424295707,1780755057000,-277.5,0.0003132,2]
[424295708,1780755057000,-653.52,0.0003132,2]
[424295711,1780755057000,-1000.0,0.0003132,2]
[424295712,1780755057000,-158.02,0.0003132,2]
[424295714,1780755057000,-1652.45,0.0003132,2]
[424295713,1780755057000,-2000.0,0.0003132,2]
[424295720,1780755057000,-1000.0,0.0003132,2]
[424295718,1780755057000,-1000.0,0.0003132,2]
[424295715,1780755057000,-2000.0,0.0003132,2]
[424295719,1780755057000,-1000.0,0.0003132,2]
[424295717,1780755057000,-1180.23,0.0003132,2]
[424295716,1780755057000,-2000.0,0.0003132,2]
[424295721,1780755057000,-1000.0,0.0003132,2]
[424295659,1780755057000,-150.0,0.00031226,7]
[424295705,1780755057000,-2532.201305,0.00031317,7]
[424295687,1780755057000,-500.0,0.00031288,2]
[424295702,1780755057000,-242.339104,0.00031317,7]
[424295688,1780755057000,-580.28,0.00031288,2]
[424295662,1780755057000,-150.0,0.00031233,2]
[424295686,1780755057000,-500.0,0.00031288,2]
[424295661,1780755057000,-150.0,0.00031231,7]
[424295664,1780755057000,-502.7803597,0.0003125,7]
[424295667,1780755057000,-150.0,0.00031263,7]
[424295666,1780755057000,-150.0,0.0003126,7]
[424295665,1780755057000,-150.0,0.00031253,7]
[424295669,1780755057000,-150.0,0.00031283,7]
[424295668,1780755057000,-513.34,0.00031279,60]
[424295672,1780755057000,-500.0,0.00031288,2]
[424295673,1780755057000,-500.0,0.00031288,2]
[424295674,1780755057000,-500.0,0.00031288,2]
[424295681,1780755057000,-500.0,0.00031288,2]
[424295678,1780755057000,-500.0,0.00031288,2]
[424295670,1780755057000,-502.7803597,0.00031283,7]
[424295677,1780755057000,-720.19,0.00031288,2]
[424295697,1780755057000,-617.346821,0.00031317,7]